[Event "*** Titled Tuesday Blitz"]
[Site "Chess.com"]
[Date "2020.10.27"]
[Round "1"]
[White "PhileKhoob"]
[Black "exoticprincess"]
[Result "0-1"]
[WhiteElo "2440"]
[BlackElo "2844"]
[TimeControl "180+1"]
[EndTime "10:04:54 PDT"]
[Termination "exoticprincess won by resignation"]

1. e4 {[%clk 0:02:59.6]} 1... d6 {[%clk 0:02:58.8]} 2. d4 {[%clk 0:02:59.3]}
2... Nf6 {[%clk 0:02:59.2]} 3. Nc3 {[%clk 0:02:58.6]} 3... e5 {[%clk 0:02:59.7]}
4. Nf3 {[%clk 0:02:58.4]} 4... Nbd7 {[%clk 0:03:00.2]} 5. Bc4 {[%clk 0:02:58.5]}
5... Be7 {[%clk 0:03:00.6]} 6. O-O {[%clk 0:02:58.4]} 6... O-O {[%clk
0:03:00.5]} 7. Re1 {[%clk 0:02:58.9]} 7... c6 {[%clk 0:02:59.6]} 8. a4 {[%clk
0:02:59]} 8... h6 {[%clk 0:02:59.3]} 9. Ba2 {[%clk 0:02:58.6]} 9... Re8 {[%clk
0:02:58.6]} 10. h3 {[%clk 0:02:49.4]} 10... Qc7 {[%clk 0:02:58]} 11. Be3 {[%clk
0:02:48]} 11... Nf8 {[%clk 0:02:58]} 12. Qd2 {[%clk 0:02:40.9]} 12... N6h7
{[%clk 0:02:57.6]} 13. Rad1 {[%clk 0:02:40.3]} 13... a5 {[%clk 0:02:50.7]} 14.
Ne2 {[%clk 0:02:24.8]} 14... Be6 {[%clk 0:02:43.9]} 15. d5 {[%clk 0:02:19.3]}
15... cxd5 {[%clk 0:02:42.8]} 16. exd5 {[%clk 0:02:19.3]} 16... Bd7 {[%clk
0:02:41.9]} 17. b3 {[%clk 0:02:17.5]} 17... f5 {[%clk 0:02:33.4]} 18. Qc1 {[%clk
0:02:05.7]} 18... Ng6 {[%clk 0:02:25.3]} 19. c4 {[%clk 0:02:04.8]} 19... b6
{[%clk 0:02:16.3]} 20. Nc3 {[%clk 0:02:03.2]} 20... Nf6 {[%clk 0:02:09.1]} 21.
Bxh6 {[%clk 0:01:50]} 21... e4 {[%clk 0:02:06.1]} 22. Nd4 {[%clk 0:01:46.5]}
22... gxh6 {[%clk 0:02:02.8]} 23. Qxh6 {[%clk 0:01:47.4]} 23... Kf7 {[%clk
0:02:03]} 24. Ne6 {[%clk 0:01:39.9]} 24... Bxe6 {[%clk 0:02:03.2]} 25. dxe6+
{[%clk 0:01:40.6]} 25... Kxe6 {[%clk 0:02:04.1]} 26. Qxg6 {[%clk 0:01:38.8]}
26... Rg8 {[%clk 0:02:04.6]} 27. Qh6 {[%clk 0:01:38.5]} 27... Rh8 {[%clk
0:01:58]} 28. Qf4 {[%clk 0:01:33.3]} 28... Rag8 {[%clk 0:01:57.8]} 29. Nd5
{[%clk 0:01:32.5]} 29... Qc5 {[%clk 0:01:58]} 30. Nxf6 {[%clk 0:01:28]} 30...
Bxf6 {[%clk 0:01:54.5]} 31. Bb1 {[%clk 0:01:27.9]} 31... Be5 {[%clk 0:01:52.5]}
32. Qe3 {[%clk 0:01:26.3]} 32... Qc7 {[%clk 0:01:44.3]} 33. f4 {[%clk
0:01:19.2]} 33... Qg7 {[%clk 0:01:42.6]} 34. Re2 {[%clk 0:01:16]} 34... Bc3
{[%clk 0:01:38]} 35. Qxb6 {[%clk 0:01:12.7]} 35... Bb4 {[%clk 0:01:36.7]} 36.
Qd4 {[%clk 0:01:10.5]} 36... Bc5 {[%clk 0:01:36]} 0-1

[Event "*** Titled Tuesday Blitz"]
[Site "Chess.com"]
[Date "2020.10.27"]
[Round "1"]
[White "kinga2008"]
[Black "cstevens1"]
[Result "1-0"]
[WhiteElo "2126"]
[BlackElo "2516"]
[TimeControl "180+1"]
[EndTime "10:04:58 PDT"]
[Termination "kinga2008 won by resignation"]

1. e4 {[%clk 0:02:53]} 1... c5 {[%clk 0:02:59.1]} 2. Nf3 {[%clk 0:02:51.1]} 2...
e6 {[%clk 0:02:59.5]} 3. c3 {[%clk 0:02:40.1]} 3... d5 {[%clk 0:02:58.6]} 4. e5
{[%clk 0:02:39.8]} 4... d4 {[%clk 0:02:59.1]} 5. Bd3 {[%clk 0:02:37.8]} 5... Nc6
{[%clk 0:02:58.7]} 6. O-O {[%clk 0:02:36.5]} 6... Nge7 {[%clk 0:02:58.5]} 7. Re1
{[%clk 0:02:32.2]} 7... Nf5 {[%clk 0:02:58.1]} 8. Bxf5 {[%clk 0:02:30.8]} 8...
exf5 {[%clk 0:02:57.8]} 9. d3 {[%clk 0:02:28.8]} 9... Be7 {[%clk 0:02:57.3]} 10.
Na3 {[%clk 0:02:27.6]} 10... Be6 {[%clk 0:02:56.7]} 11. Nb5 {[%clk 0:02:23.3]}
11... O-O {[%clk 0:02:49.9]} 12. Bf4 {[%clk 0:02:19.9]} 12... Rc8 {[%clk
0:02:16.2]} 13. Nd6 {[%clk 0:02:14.3]} 13... Rc7 {[%clk 0:02:08]} 14. Qa4 {[%clk
0:02:07]} 14... dxc3 {[%clk 0:01:34.2]} 15. bxc3 {[%clk 0:01:57.3]} 15... Rd7
{[%clk 0:01:26.8]} 16. d4 {[%clk 0:01:49.4]} 16... cxd4 {[%clk 0:01:26.2]} 17.
cxd4 {[%clk 0:01:45.9]} 17... Bxd6 {[%clk 0:01:17.9]} 18. exd6 {[%clk
0:01:45.1]} 18... Qa5 {[%clk 0:01:18.8]} 19. Qxa5 {[%clk 0:01:35.5]} 19... Nxa5
{[%clk 0:01:19.7]} 20. Red1 {[%clk 0:01:30.9]} 20... Bd5 {[%clk 0:01:17.7]} 21.
Rac1 {[%clk 0:01:28.2]} 21... Bxf3 {[%clk 0:01:01.9]} 22. gxf3 {[%clk
0:01:26.2]} 22... b6 {[%clk 0:01:01.7]} 23. Rc7 {[%clk 0:01:25.5]} 23... Rfd8
{[%clk 0:01:01.3]} 24. Rdc1 {[%clk 0:01:23.6]} 24... f6 {[%clk 0:00:53.9]} 25.
Rxd7 {[%clk 0:01:18]} 25... Rxd7 {[%clk 0:00:54.8]} 26. Rc8+ {[%clk 0:01:18.6]}
26... Rd8 {[%clk 0:00:55.1]} 27. Rxd8+ {[%clk 0:01:18.4]} 1-0

[Event "*** Titled Tuesday Blitz"]
[Site "Chess.com"]
[Date "2020.10.27"]
[Round "1"]
[White "RaunakSadhwani2005"]
[Black "KarstenHansch"]
[Result "1-0"]
[WhiteElo "2953"]
[BlackElo "2481"]
[TimeControl "180+1"]
[EndTime "10:05:05 PDT"]
[Termination "RaunakSadhwani2005 won by checkmate"]

1. c4 {[%clk 0:03:00.9]} 1... Nf6 {[%clk 0:02:58.7]} 2. Nc3 {[%clk 0:03:01.3]}
2... e6 {[%clk 0:02:59]} 3. e4 {[%clk 0:03:01]} 3... d5 {[%clk 0:02:58]} 4. e5
{[%clk 0:03:00.8]} 4... d4 {[%clk 0:02:58.4]} 5. exf6 {[%clk 0:03:00.7]} 5...
dxc3 {[%clk 0:02:58.5]} 6. bxc3 {[%clk 0:03:01.6]} 6... gxf6 {[%clk 0:02:57.9]}
7. d4 {[%clk 0:03:00.4]} 7... b6 {[%clk 0:02:54.1]} 8. Nf3 {[%clk 0:03:00.4]}
8... Bb7 {[%clk 0:02:54.1]} 9. g3 {[%clk 0:03:00.1]} 9... Nd7 {[%clk 0:02:53.3]}
10. Bg2 {[%clk 0:03:00.3]} 10... Bd6 {[%clk 0:02:50.5]} 11. O-O {[%clk
0:03:00.5]} 11... Qe7 {[%clk 0:02:50.3]} 12. Be3 {[%clk 0:02:58.6]} 12... O-O-O
{[%clk 0:02:50]} 13. a4 {[%clk 0:02:58.4]} 13... f5 {[%clk 0:02:40.2]} 14. a5
{[%clk 0:02:52.6]} 14... Nf6 {[%clk 0:02:38.3]} 15. axb6 {[%clk 0:02:52]} 15...
axb6 {[%clk 0:02:38.4]} 16. Ra7 {[%clk 0:02:52.1]} 16... Ne4 {[%clk 0:02:37.9]}
17. Qa1 {[%clk 0:02:48.7]} 17... f4 {[%clk 0:02:29.8]} 18. Bc1 {[%clk
0:02:36.4]} 18... f5 {[%clk 0:02:25.2]} 19. c5 {[%clk 0:01:31.9]} 19... bxc5
{[%clk 0:02:19.5]} 20. Qb2 {[%clk 0:01:31.8]} 20... Bc6 {[%clk 0:02:15.7]} 21.
Rd1 {[%clk 0:01:25.3]} 21... fxg3 {[%clk 0:02:04.3]} 22. hxg3 {[%clk 0:01:23.2]}
22... f4 {[%clk 0:01:58.6]} 23. Qa2 {[%clk 0:01:02.3]} 23... fxg3 {[%clk
0:01:52.1]} 24. Qa6+ {[%clk 0:01:00.3]} 24... Kd7 {[%clk 0:01:43.6]} 25. Ne5+
{[%clk 0:00:58.7]} 25... Bxe5 {[%clk 0:01:36.9]} 26. dxe5+ {[%clk 0:00:59.6]}
26... Bd5 {[%clk 0:01:35.5]} 27. Qa4+ {[%clk 0:00:53.7]} 27... Kc8 {[%clk
0:01:24.3]} 28. Ra8+ {[%clk 0:00:50.4]} 28... Kb7 {[%clk 0:01:21.8]} 29. Qa6#
{[%clk 0:00:50.1]} 1-0

[Event "*** Titled Tuesday Blitz"]
[Site "Chess.com"]
[Date "2020.10.27"]
[Round "1"]
[White "Morshynska"]
[Black "Ginger_GM"]
[Result "0-1"]
[WhiteElo "2211"]
[BlackElo "2572"]
[TimeControl "180+1"]
[EndTime "10:05:22 PDT"]
[Termination "Ginger_GM won by resignation"]

1. Nf3 {[%clk 0:03:00.9]} 1... f5 {[%clk 0:02:59.2]} 2. g3 {[%clk 0:03:01.5]}
2... Nf6 {[%clk 0:02:58.5]} 3. Bg2 {[%clk 0:03:01.7]} 3... d6 {[%clk 0:02:58.3]}
4. O-O {[%clk 0:03:00.2]} 4... e5 {[%clk 0:02:57.1]} 5. d3 {[%clk 0:02:59.5]}
5... Be7 {[%clk 0:02:56.8]} 6. Nc3 {[%clk 0:02:53.6]} 6... O-O {[%clk
0:02:54.3]} 7. e4 {[%clk 0:02:49.6]} 7... Nc6 {[%clk 0:02:40.1]} 8. h3 {[%clk
0:02:48.4]} 8... f4 {[%clk 0:02:32.4]} 9. gxf4 {[%clk 0:02:36.7]} 9... exf4
{[%clk 0:02:31]} 10. Bxf4 {[%clk 0:02:20.4]} 10... Nxe4 {[%clk 0:02:27.2]} 11.
Bh2 {[%clk 0:02:10.2]} 11... Nxc3 {[%clk 0:02:19.2]} 12. bxc3 {[%clk 0:02:11.1]}
12... Qe8 {[%clk 0:02:02.5]} 13. Nd4 {[%clk 0:02:02.2]} 13... Nxd4 {[%clk
0:01:55.4]} 14. cxd4 {[%clk 0:02:03.1]} 14... Qg6 {[%clk 0:01:53.8]} 15. Kh1
{[%clk 0:01:56.4]} 15... c6 {[%clk 0:01:36.9]} 16. d5 {[%clk 0:01:10.4]} 16...
c5 {[%clk 0:01:24.1]} 17. Rb1 {[%clk 0:01:08.5]} 17... Qh6 {[%clk 0:01:22.8]}
18. Qc1 {[%clk 0:01:00.2]} 18... Bg5 {[%clk 0:01:09.4]} 19. f4 {[%clk
0:00:59.8]} 19... Bd8 {[%clk 0:01:08.9]} 20. Qe3 {[%clk 0:00:49.4]} 20... Bf6
{[%clk 0:01:02.5]} 21. f5 {[%clk 0:00:35.8]} 21... Qxe3 {[%clk 0:00:59.7]} 0-1

[Event "*** Titled Tuesday Blitz"]
[Site "Chess.com"]
[Date "2020.10.27"]
[Round "1"]
[White "crescentmoon2411"]
[Black "TomasKapitanchuk"]
[Result "1-0"]
[WhiteElo "2844"]
[BlackElo "2441"]
[TimeControl "180+1"]
[EndTime "10:05:23 PDT"]
[Termination "crescentmoon2411 won by checkmate"]

1. e4 {[%clk 0:03:00.7]} 1... c5 {[%clk 0:02:59.1]} 2. Nf3 {[%clk 0:03:01]} 2...
e6 {[%clk 0:02:58.7]} 3. c3 {[%clk 0:03:00.8]} 3... Nf6 {[%clk 0:02:58.3]} 4. e5
{[%clk 0:03:00.3]} 4... Nd5 {[%clk 0:02:58.9]} 5. d4 {[%clk 0:02:59.7]} 5...
cxd4 {[%clk 0:02:59.8]} 6. cxd4 {[%clk 0:02:59.3]} 6... d6 {[%clk 0:03:00.4]} 7.
Bc4 {[%clk 0:02:58.9]} 7... Be7 {[%clk 0:02:59.9]} 8. O-O {[%clk 0:02:58.6]}
8... O-O {[%clk 0:03:00.5]} 9. Qe2 {[%clk 0:02:56.2]} 9... b6 {[%clk 0:03:00.6]}
10. Bd2 {[%clk 0:02:44.4]} 10... Bb7 {[%clk 0:02:57.6]} 11. Nc3 {[%clk
0:02:43.3]} 11... Nxc3 {[%clk 0:02:56.9]} 12. Bxc3 {[%clk 0:02:44.2]} 12... Nd7
{[%clk 0:02:53.8]} 13. Rfd1 {[%clk 0:02:42.8]} 13... dxe5 {[%clk 0:02:42.3]} 14.
dxe5 {[%clk 0:02:43.7]} 14... Qc7 {[%clk 0:02:42.1]} 15. Bd3 {[%clk 0:02:30.7]}
15... Nc5 {[%clk 0:02:39.1]} 16. Bc2 {[%clk 0:02:29.3]} 16... Rfd8 {[%clk
0:02:39.6]} 17. Rd4 {[%clk 0:02:06]} 17... Rxd4 {[%clk 0:02:29.6]} 18. Nxd4
{[%clk 0:02:06.9]} 18... Rd8 {[%clk 0:02:28.6]} 19. Rd1 {[%clk 0:01:30.3]} 19...
a6 {[%clk 0:02:28.8]} 20. f4 {[%clk 0:01:09.5]} 20... b5 {[%clk 0:02:09.6]} 21.
f5 {[%clk 0:01:00.9]} 21... exf5 {[%clk 0:02:06]} 22. Nxf5 {[%clk 0:01:01]}
22... Rxd1+ {[%clk 0:02:06.8]} 23. Qxd1 {[%clk 0:01:00.5]} 23... Bf8 {[%clk
0:01:59.1]} 24. Qg4 {[%clk 0:00:52.9]} 24... Bc8 {[%clk 0:01:32.7]} 25. Nh6+
{[%clk 0:00:48.1]} 25... Kh8 {[%clk 0:01:32.8]} 26. Nxf7+ {[%clk 0:00:48.3]}
26... Kg8 {[%clk 0:01:24.1]} 27. Nh6+ {[%clk 0:00:44.5]} 27... Kh8 {[%clk
0:01:24.5]} 28. Qf3 {[%clk 0:00:41.7]} 28... gxh6 {[%clk 0:01:10.9]} 29. Qxf8#
{[%clk 0:00:41]} 1-0

[Event "*** Titled Tuesday Blitz"]
[Site "Chess.com"]
[Date "2020.10.27"]
[Round "1"]
[White "Zq1"]
[Black "PattyCastillo"]
[Result "1-0"]
[WhiteElo "2500"]
[BlackElo "1851"]
[TimeControl "180+1"]
[EndTime "10:05:23 PDT"]
[Termination "Zq1 won by resignation"]

1. d4 {[%clk 0:02:59.6]} 1... d5 {[%clk 0:02:59.2]} 2. c4 {[%clk 0:02:59.5]}
2... c6 {[%clk 0:02:58.9]} 3. cxd5 {[%clk 0:02:59.6]} 3... cxd5 {[%clk
0:02:58.6]} 4. Bg5 {[%clk 0:02:59.8]} 4... Qa5+ {[%clk 0:02:41.5]} 5. Nc3 {[%clk
0:02:59.2]} 5... e6 {[%clk 0:02:38.7]} 6. e3 {[%clk 0:02:58]} 6... Bb4 {[%clk
0:02:35.1]} 7. Ne2 {[%clk 0:02:56.6]} 7... Nc6 {[%clk 0:02:33.7]} 8. a3 {[%clk
0:02:55.6]} 8... Be7 {[%clk 0:02:31.2]} 9. Bxe7 {[%clk 0:02:48.8]} 9... Ngxe7
{[%clk 0:02:30.5]} 10. Nf4 {[%clk 0:02:42.6]} 10... O-O {[%clk 0:02:27.4]} 11.
Bd3 {[%clk 0:02:42.3]} 11... e5 {[%clk 0:02:16.7]} 12. b4 {[%clk 0:02:31.2]}
12... Qd8 {[%clk 0:02:07.6]} 13. dxe5 {[%clk 0:02:29.3]} 13... Nxe5 {[%clk
0:02:07.5]} 14. Nfxd5 {[%clk 0:02:26.5]} 14... Nxd3+ {[%clk 0:02:05.7]} 15. Qxd3
{[%clk 0:02:24.4]} 15... Nxd5 {[%clk 0:02:04.1]} 16. Nxd5 {[%clk 0:02:20.7]}
16... Be6 {[%clk 0:02:02.3]} 17. Rd1 {[%clk 0:02:20.5]} 17... Qg5 {[%clk
0:01:55.2]} 18. O-O {[%clk 0:02:17.2]} 18... Rfd8 {[%clk 0:01:51.1]} 19. e4
{[%clk 0:02:15]} 19... Rac8 {[%clk 0:01:35]} 20. f4 {[%clk 0:02:11.4]} 20... Qh4
{[%clk 0:01:18.4]} 21. Qg3 {[%clk 0:02:04.4]} 21... Qxg3 {[%clk 0:01:16.3]} 22.
hxg3 {[%clk 0:02:04]} 22... Bxd5 {[%clk 0:01:15.1]} 23. exd5 {[%clk 0:01:57]}
23... Rd6 {[%clk 0:01:11.9]} 24. Rf3 {[%clk 0:01:56.1]} 24... Kf8 {[%clk
0:01:12]} 25. Rfd3 {[%clk 0:01:54.4]} 25... Ke7 {[%clk 0:01:10.8]} 26. Kf2
{[%clk 0:01:53.5]} 26... Rc2+ {[%clk 0:01:08.2]} 27. R1d2 {[%clk 0:01:48.4]}
27... Rc7 {[%clk 0:01:07]} 28. g4 {[%clk 0:01:46.6]} 28... f5 {[%clk 0:00:53]}
29. gxf5 {[%clk 0:01:45.3]} 29... Kf6 {[%clk 0:00:53.2]} 30. g4 {[%clk
0:01:43.3]} 30... h6 {[%clk 0:00:47.4]} 31. Re2 {[%clk 0:01:38.2]} 31... Rcd7
{[%clk 0:00:42.9]} 32. Re6+ {[%clk 0:01:35.8]} 32... Kf7 {[%clk 0:00:42.8]} 33.
Rxd6 {[%clk 0:01:34.5]} 33... Rxd6 {[%clk 0:00:43.4]} 34. Kf3 {[%clk 0:01:32.8]}
34... Kf6 {[%clk 0:00:42]} 35. Ke4 {[%clk 0:01:29.8]} 35... Ra6 {[%clk
0:00:40.9]} 36. d6 {[%clk 0:01:28.6]} 1-0

[Event "*** Titled Tuesday Blitz"]
[Site "Chess.com"]
[Date "2020.10.27"]
[Round "1"]
[White "pastouche06"]
[Black "ArjunErigaisi2003"]
[Result "0-1"]
[WhiteElo "2488"]
[BlackElo "3002"]
[TimeControl "180+1"]
[EndTime "10:05:26 PDT"]
[Termination "ArjunErigaisi2003 won by resignation"]

1. d4 {[%clk 0:02:59.9]} 1... g6 {[%clk 0:02:58.6]} 2. c4 {[%clk 0:02:59.4]}
2... Nf6 {[%clk 0:02:58.4]} 3. f3 {[%clk 0:02:58.2]} 3... d5 {[%clk 0:02:52.2]}
4. cxd5 {[%clk 0:02:59.1]} 4... Nxd5 {[%clk 0:02:49.9]} 5. e4 {[%clk 0:02:58.3]}
5... Nb6 {[%clk 0:02:50.4]} 6. Nc3 {[%clk 0:02:58.2]} 6... Bg7 {[%clk 0:02:50]}
7. Be3 {[%clk 0:02:58.6]} 7... O-O {[%clk 0:02:48.4]} 8. Qd2 {[%clk 0:02:57.4]}
8... Nc6 {[%clk 0:02:44.8]} 9. O-O-O {[%clk 0:02:56.6]} 9... e5 {[%clk
0:02:42.2]} 10. d5 {[%clk 0:02:54.8]} 10... Na5 {[%clk 0:02:41.6]} 11. Bxb6
{[%clk 0:02:37]} 11... axb6 {[%clk 0:02:38.7]} 12. b4 {[%clk 0:02:37]} 12... Qd6
{[%clk 0:02:15.9]} 13. bxa5 {[%clk 0:02:17]} 13... Rxa5 {[%clk 0:02:16.8]} 14.
Kb1 {[%clk 0:02:06]} 14... Bd7 {[%clk 0:02:16.1]} 15. Bc4 {[%clk 0:02:02.8]}
15... Rfa8 {[%clk 0:02:02.4]} 16. Bb3 {[%clk 0:01:52.9]} 16... b5 {[%clk
0:01:57.8]} 17. Nge2 {[%clk 0:01:46.9]} 17... b4 {[%clk 0:01:55.6]} 18. Rc1
{[%clk 0:01:32.5]} 18... bxc3 {[%clk 0:01:54.7]} 19. Rxc3 {[%clk 0:01:33.4]}
19... c5 {[%clk 0:01:46.5]} 20. Rhc1 {[%clk 0:01:09.2]} 20... Bf8 {[%clk
0:01:45.7]} 21. Qe3 {[%clk 0:00:59.8]} 21... Rc8 {[%clk 0:01:42.4]} 22. f4
{[%clk 0:00:41]} 22... Bg7 {[%clk 0:01:34.7]} 23. f5 {[%clk 0:00:36.2]} 23...
gxf5 {[%clk 0:01:30.1]} 24. exf5 {[%clk 0:00:31.7]} 24... Bxf5+ {[%clk 0:01:31]}
25. Ka1 {[%clk 0:00:31.7]} 25... e4 {[%clk 0:01:29.6]} 26. Ng3 {[%clk
0:00:32.1]} 26... Bg6 {[%clk 0:01:27.6]} 27. Nxe4 {[%clk 0:00:29.9]} 27... Qe7
{[%clk 0:01:27.4]} 0-1

[Event "*** Titled Tuesday Blitz"]
[Site "Chess.com"]
[Date "2020.10.27"]
[Round "1"]
[White "parintele_chess"]
[Black "Natalya_Buksa"]
[Result "0-1"]
[WhiteElo "2149"]
[BlackElo "2542"]
[TimeControl "180+1"]
[EndTime "10:05:30 PDT"]
[Termination "Natalya_Buksa won by resignation"]

1. d4 {[%clk 0:02:59.1]} 1... d5 {[%clk 0:02:59.2]} 2. c4 {[%clk 0:02:59.1]}
2... e6 {[%clk 0:02:59.1]} 3. Nc3 {[%clk 0:02:59]} 3... Be7 {[%clk 0:02:59.4]}
4. cxd5 {[%clk 0:02:56.2]} 4... exd5 {[%clk 0:02:59.5]} 5. Nf3 {[%clk
0:02:56.7]} 5... Nf6 {[%clk 0:02:59.7]} 6. Bg5 {[%clk 0:02:56.1]} 6... c6 {[%clk
0:02:51.2]} 7. e3 {[%clk 0:02:55.9]} 7... h6 {[%clk 0:02:47.9]} 8. Bf4 {[%clk
0:02:54.4]} 8... g5 {[%clk 0:02:47.5]} 9. Bg3 {[%clk 0:02:54]} 9... Nh5 {[%clk
0:02:48]} 10. Bd3 {[%clk 0:02:33.3]} 10... Nxg3 {[%clk 0:02:47.2]} 11. hxg3
{[%clk 0:02:34.2]} 11... Be6 {[%clk 0:02:47.2]} 12. Ne5 {[%clk 0:02:31.6]} 12...
Nd7 {[%clk 0:02:46.5]} 13. f4 {[%clk 0:02:22.7]} 13... Nxe5 {[%clk 0:02:46.5]}
14. dxe5 {[%clk 0:02:13.3]} 14... d4 {[%clk 0:02:46.2]} 15. exd4 {[%clk
0:01:39.7]} 15... Qxd4 {[%clk 0:02:45.4]} 16. Be2 {[%clk 0:01:39]} 16... Qe3
{[%clk 0:02:38.8]} 17. Qd3 {[%clk 0:01:37.6]} 17... gxf4 {[%clk 0:02:37.6]} 18.
gxf4 {[%clk 0:01:33.9]} 18... Qxf4 {[%clk 0:02:37.7]} 19. Rf1 {[%clk 0:01:33.2]}
19... Bh4+ {[%clk 0:02:35]} 20. Kd1 {[%clk 0:01:33.3]} 20... Qxe5 {[%clk
0:02:34.8]} 21. Kc2 {[%clk 0:01:28.9]} 21... Rd8 {[%clk 0:02:17.1]} 22. Qf3
{[%clk 0:01:28.7]} 22... Bg5 {[%clk 0:02:12.6]} 23. Rad1 {[%clk 0:01:25.9]}
23... Rxd1 {[%clk 0:01:45.4]} 24. Rxd1 {[%clk 0:01:26.8]} 24... O-O {[%clk
0:01:45.8]} 25. Bd3 {[%clk 0:01:21.4]} 25... Qe3 {[%clk 0:01:41.2]} 26. Qh5
{[%clk 0:01:16.8]} 26... Qf4 {[%clk 0:01:25.4]} 27. Ne4 {[%clk 0:01:07.3]} 27...
Bg4 {[%clk 0:01:24.7]} 0-1

[Event "*** Titled Tuesday Blitz"]
[Site "Chess.com"]
[Date "2020.10.27"]
[Round "1"]
[White "chenxiaoyuer"]
[Black "pedro_nascimento85"]
[Result "1-0"]
[WhiteElo "2515"]
[BlackElo "2005"]
[TimeControl "180+1"]
[EndTime "10:05:32 PDT"]
[Termination "chenxiaoyuer won by resignation"]

1. e4 {[%clk 0:03:00.9]} 1... e6 {[%clk 0:02:59.4]} 2. d4 {[%clk 0:02:59.6]}
2... d5 {[%clk 0:02:59.1]} 3. Nd2 {[%clk 0:03:00.1]} 3... Nc6 {[%clk 0:02:55.2]}
4. Ngf3 {[%clk 0:02:58.4]} 4... Nf6 {[%clk 0:02:49.5]} 5. e5 {[%clk 0:02:57.1]}
5... Nd7 {[%clk 0:02:50]} 6. c3 {[%clk 0:02:56.9]} 6... f6 {[%clk 0:02:47.6]} 7.
Bb5 {[%clk 0:02:56.1]} 7... a6 {[%clk 0:02:45.2]} 8. Bxc6 {[%clk 0:02:48.2]}
8... bxc6 {[%clk 0:02:44.4]} 9. O-O {[%clk 0:02:47.2]} 9... c5 {[%clk
0:02:44.2]} 10. Re1 {[%clk 0:02:39.6]} 10... cxd4 {[%clk 0:02:41.5]} 11. cxd4
{[%clk 0:02:19.2]} 11... c5 {[%clk 0:02:40.4]} 12. exf6 {[%clk 0:02:15]} 12...
Nxf6 {[%clk 0:02:38.8]} 13. Ng5 {[%clk 0:02:06.4]} 13... Qb6 {[%clk 0:02:31.8]}
14. Qb3 {[%clk 0:01:44.6]} 14... Qc6 {[%clk 0:02:16.4]} 15. Ndf3 {[%clk
0:01:41]} 15... c4 {[%clk 0:01:36.5]} 16. Qe3 {[%clk 0:01:38.5]} 16... Be7
{[%clk 0:01:28.3]} 17. Nxe6 {[%clk 0:01:31.1]} 17... Bxe6 {[%clk 0:01:28.8]} 18.
Qxe6 {[%clk 0:01:31.2]} 18... Qxe6 {[%clk 0:01:28.5]} 19. Rxe6 {[%clk
0:01:31.5]} 19... Kf7 {[%clk 0:01:28.4]} 20. Ng5+ {[%clk 0:01:27.8]} 20... Ke8
{[%clk 0:01:24.1]} 21. Bf4 {[%clk 0:01:23.8]} 21... h6 {[%clk 0:01:19]} 22. Rae1
{[%clk 0:01:22]} 22... hxg5 {[%clk 0:01:15.5]} 23. Rxe7+ {[%clk 0:01:21.6]}
23... Kf8 {[%clk 0:01:15.8]} 24. Bxg5 {[%clk 0:01:19.3]} 24... Ne4 {[%clk
0:01:12.6]} 25. Re5 {[%clk 0:01:19]} 25... Nxg5 {[%clk 0:01:11.2]} 26. Rxg5
{[%clk 0:01:18.4]} 26... Kf7 {[%clk 0:01:10.8]} 27. Rxd5 {[%clk 0:01:17.9]}
27... Rhe8 {[%clk 0:01:10.2]} 28. Rd7+ {[%clk 0:01:13.7]} 28... Kf6 {[%clk
0:01:09.8]} 29. Rxe8 {[%clk 0:01:13.5]} 29... Rxe8 {[%clk 0:01:09.3]} 30. Kf1
{[%clk 0:01:13.7]} 30... Rb8 {[%clk 0:01:08.9]} 31. Rd6+ {[%clk 0:01:12.5]}
31... Kf5 {[%clk 0:01:07.8]} 32. Rxa6 {[%clk 0:01:11.2]} 32... Ke4 {[%clk
0:01:06.5]} 33. b3 {[%clk 0:01:07.5]} 33... cxb3 {[%clk 0:01:04.4]} 34. axb3
{[%clk 0:01:06.9]} 34... Kxd4 {[%clk 0:01:01.8]} 35. Rg6 {[%clk 0:01:05.4]}
35... Rb7 {[%clk 0:01:01.1]} 36. Rg3 {[%clk 0:01:01.5]} 1-0

[Event "*** Titled Tuesday Blitz"]
[Site "Chess.com"]
[Date "2020.10.27"]
[Round "1"]
[White "Smirnov_Pavel"]
[Black "mjray79"]
[Result "1-0"]
[WhiteElo "2870"]
[BlackElo "2454"]
[TimeControl "180+1"]
[EndTime "10:05:33 PDT"]
[Termination "Smirnov_Pavel won by resignation"]

1. d4 {[%clk 0:03:00.3]} 1... Nf6 {[%clk 0:02:57.7]} 2. c4 {[%clk 0:02:59.6]}
2... g6 {[%clk 0:02:58.1]} 3. Nf3 {[%clk 0:02:59.9]} 3... Bg7 {[%clk 0:02:58.3]}
4. g3 {[%clk 0:03:00.8]} 4... d6 {[%clk 0:02:58.5]} 5. Bg2 {[%clk 0:03:01.7]}
5... O-O {[%clk 0:02:58.8]} 6. O-O {[%clk 0:03:02.2]} 6... Nc6 {[%clk
0:02:56.6]} 7. Nc3 {[%clk 0:03:01.6]} 7... a6 {[%clk 0:02:55.6]} 8. Bf4 {[%clk
0:02:59.1]} 8... Bf5 {[%clk 0:02:49.8]} 9. Rc1 {[%clk 0:02:57.3]} 9... Re8
{[%clk 0:02:49.1]} 10. d5 {[%clk 0:02:54.5]} 10... Nb8 {[%clk 0:02:47]} 11. Nd4
{[%clk 0:02:51.6]} 11... Bd7 {[%clk 0:02:44.3]} 12. e4 {[%clk 0:02:48.5]} 12...
c5 {[%clk 0:02:35.5]} 13. Nc2 {[%clk 0:02:39.1]} 13... b5 {[%clk 0:02:32.9]} 14.
e5 {[%clk 0:02:38.6]} 14... Nh5 {[%clk 0:02:29.2]} 15. e6 {[%clk 0:02:32.4]}
15... Bc8 {[%clk 0:02:05.2]} 16. exf7+ {[%clk 0:02:27]} 16... Kxf7 {[%clk
0:02:06.1]} 17. Bg5 {[%clk 0:02:25.1]} 17... b4 {[%clk 0:01:48]} 18. Ne4 {[%clk
0:02:24.2]} 18... Nf6 {[%clk 0:01:45.6]} 19. Ne3 {[%clk 0:02:15.6]} 19... h6
{[%clk 0:01:38.1]} 20. f4 {[%clk 0:02:05.2]} 20... Kg8 {[%clk 0:01:20.9]} 21.
Bh4 {[%clk 0:01:59.1]} 21... Ra7 {[%clk 0:01:20.6]} 22. Qd3 {[%clk 0:01:58.3]}
22... Nh7 {[%clk 0:01:13.4]} 23. Kh1 {[%clk 0:01:50.6]} 23... Qb6 {[%clk
0:01:03.1]} 24. Nd2 {[%clk 0:01:42.8]} 24... e6 {[%clk 0:01:00.1]} 25. Qxg6
{[%clk 0:01:41.3]} 25... Bd7 {[%clk 0:00:56.2]} 26. dxe6 {[%clk 0:01:32.7]}
26... Bc6 {[%clk 0:00:53.6]} 27. Nd5 {[%clk 0:01:30.2]} 27... Qb7 {[%clk
0:00:51.4]} 28. f5 {[%clk 0:01:27.4]} 28... Nf8 {[%clk 0:00:49.2]} 29. Qh5
{[%clk 0:01:19.5]} 29... Nxe6 {[%clk 0:00:38.9]} 30. fxe6 {[%clk 0:01:14.9]}
30... Rxe6 {[%clk 0:00:39.8]} 31. Rce1 {[%clk 0:01:14.1]} 31... Rxe1 {[%clk
0:00:36.2]} 1-0